[Event "Gibraltar Masters 18th"]
[Site "Gibraltar"]
[Date "2020.01.22"]
[Round "2.7"]
[White "Alekseenko, Kirill"]
[Black "Henderson De La Fuente, Lance"]
[Result "1-0"]
[ECO "B30"]
[WhiteElo "2704"]
[BlackElo "2492"]
[PlyCount "59"]
[EventDate "2020.01.21"]
[EventType "swiss"]
[EventRounds "10"]
[EventCountry "GGB"]
[SourceTitle "BritBase"]
[Source "John Saunders"]
[SourceDate "2021.06.05"]
[SourceVersion "1"]
[SourceVersionDate "2021.06.05"]
[SourceQuality "1"]
[TimeControl "40/100:0"]
[WhiteClock "0:27:18"]
[BlackClock "0:01:18"]

1. e4 {[%emt 0:00:00]} c5 {[%emt 0:00:00]} 2. Nf3 {[%emt 0:00:00]} Nc6 {
[%emt 0:00:00]} 3. Nc3 {[%emt 0:00:00]} e5 {[%emt 0:00:00]} 4. Bc4 {[%emt 0:00:
00]} Be7 {[%emt 0:00:00]} 5. d3 {[%emt 0:00:00]} d6 {[%emt 0:00:00]} 6. Nd2 {
[%emt 0:00:00]} Nf6 {[%emt 0:00:00]} 7. Nf1 {[%emt 0:00:00]} O-O {[%emt 0:00:
00]} 8. Ne3 {[%emt 0:00:00]} Nd7 {[%emt 0:00:00]} 9. Ned5 {[%emt 0:00:00]} Nb6
{[%emt 0:00:00]} 10. Nxb6 {[%emt 0:00:00]} axb6 {[%emt 0:00:00]} 11. O-O {
[%emt 0:00:00]} Bg5 {[%emt 0:00:00]} 12. Bxg5 {[%emt 0:00:00]} Qxg5 {[%emt 0:
00:00]} 13. Nd5 {[%emt 0:00:00]} Qd8 {[%emt 0:00:00]} 14. c3 {[%emt 0:00:00]}
Na5 {[%emt 0:00:00]} 15. Ne3 {[%emt 0:00:00]} Be6 {[%emt 0:00:00]} 16. Bd5 {
[%emt 0:00:00]} b5 {[%emt 0:00:00]} 17. f4 {[%emt 0:00:00]} exf4 {[%emt 0:00:
00]} 18. Rxf4 {[%emt 0:00:00]} Qd7 {[%emt 0:00:00]} 19. Qh5 {[%emt 0:00:00]}
Nc6 {[%emt 0:00:00]} 20. Raf1 {[%emt 0:00:00]} Ne5 {[%emt 0:00:00]} 21. Rh4 {
[%emt 0:00:00]} h6 {[%emt 0:00:00]} 22. Nf5 {[%emt 0:00:00]} Bxd5 {[%emt 0:00:
00]} 23. exd5 {[%emt 0:00:00]} Ng6 {[%emt 0:00:02]} 24. Rh3 {[%emt 0:00:00]}
Rxa2 {[%emt 0:00:40]} 25. Nxh6+ {[%emt 0:00:00]} gxh6 {[%emt 0:00:00]} 26. Qxh6
{[%emt 0:00:00]} Qxh3 {[%emt 0:00:25]} 27. Qxh3 {[%emt 0:00:00]} Rxb2 {[%emt 0:
00:00]} 28. Qg3 {[%emt 0:00:00]} Rc2 {[%emt 0:00:00]} 29. h4 {[%emt 0:00:00]}
Kh7 {[%emt 0:00:00]} 30. Qxd6 {[%emt 0:00:00]} 1-0

[Event "Gibraltar Masters 18th"]
[Site "Gibraltar"]
[Date "2020.01.22"]
[Round "2.9"]
[White "Gagare, Shardul"]
[Black "Adams, Michael"]
[Result "1/2-1/2"]
[ECO "C54"]
[WhiteElo "2481"]
[BlackElo "2694"]
[PlyCount "92"]
[EventDate "2020.01.21"]
[EventType "swiss"]
[EventRounds "10"]
[EventCountry "GGB"]
[SourceTitle "BritBase"]
[Source "John Saunders"]
[SourceDate "2021.06.05"]
[SourceVersion "1"]
[SourceVersionDate "2021.06.05"]
[SourceQuality "1"]
[TimeControl "40/100:0"]
[WhiteClock "0:32:10"]
[BlackClock "0:58:34"]

1. e4 {[%emt 0:00:00]} e5 {[%emt 0:00:00]} 2. Bc4 {[%emt 0:00:00]} Nf6 {
[%emt 0:00:00]} 3. d3 {[%emt 0:00:00]} Nc6 {[%emt 0:00:00]} 4. Nf3 {[%emt 0:00:
00]} Bc5 {[%emt 0:00:00]} 5. c3 {[%emt 0:00:00]} d6 {[%emt 0:00:00]} 6. Nbd2 {
[%emt 0:00:00]} O-O {[%emt 0:00:00]} 7. h3 {[%emt 0:00:00]} Ne7 {[%emt 0:00:00]
} 8. O-O {[%emt 0:00:00]} Ng6 {[%emt 0:00:00]} 9. Re1 {[%emt 0:00:00]} c6 {
[%emt 0:00:00]} 10. d4 {[%emt 0:00:00]} Bb6 {[%emt 0:00:00]} 11. Bb3 {[%emt 0:
00:00]} exd4 {[%emt 0:00:00]} 12. cxd4 {[%emt 0:00:00]} d5 {[%emt 0:00:00]} 13.
exd5 {[%emt 0:00:00]} Nxd5 {[%emt 0:00:00]} 14. Nc4 {[%emt 0:00:00]} Bc7 {
[%emt 0:00:00]} 15. Bg5 {[%emt 0:00:00]} f6 {[%emt 0:00:00]} 16. Bd2 {[%emt 0:
00:00]} a5 {[%emt 0:00:00]} 17. a4 {[%emt 0:00:00]} Kh8 {[%emt 0:00:00]} 18.
Bc2 {[%emt 0:00:00]} Re8 {[%emt 0:00:00]} 19. Rxe8+ {[%emt 0:00:00]} Qxe8 {
[%emt 0:00:00]} 20. Ne3 {[%emt 0:00:00]} Be6 {[%emt 0:00:00]} 21. Qf1 {[%emt 0:
00:00]} Qd7 {[%emt 0:00:00]} 22. Nxd5 {[%emt 0:00:00]} Bxd5 {[%emt 0:00:00]}
23. Qd3 {[%emt 0:00:00]} Bxf3 {[%emt 0:00:00]} 24. Qxf3 {[%emt 0:00:00]} Qxd4 {
[%emt 0:00:00]} 25. Bc3 {[%emt 0:00:00]} Qf4 {[%emt 0:00:00]} 26. Qxf4 {
[%emt 0:00:00]} Nxf4 {[%emt 0:00:00]} 27. Rd1 {[%emt 0:00:58]} Nd5 {[%emt 0:00:
00]} 28. Be4 {[%emt 0:00:00]} Rd8 {[%emt 0:00:00]} 29. Bxd5 {[%emt 0:00:00]}
Rxd5 {[%emt 0:00:00]} 30. Rxd5 {[%emt 0:00:00]} cxd5 {[%emt 0:00:00]} 31. b3 {
[%emt 0:00:00]} h5 {[%emt 0:00:00]} 32. g4 {[%emt 0:00:00]} Kh7 {[%emt 0:00:00]
} 33. f3 {[%emt 0:00:00]} Kg6 {[%emt 0:00:00]} 34. Kg2 {[%emt 0:00:00]} Bb6 {
[%emt 0:00:00]} 35. Bd2 {[%emt 0:00:08]} f5 {[%emt 0:00:00]} 36. Kf1 {[%emt 0:
00:00]} hxg4 {[%emt 0:00:00]} 37. hxg4 {[%emt 0:00:00]} Kf6 {[%emt 0:00:00]}
38. Ke2 {[%emt 0:00:00]} fxg4 {[%emt 0:00:00]} 39. fxg4 {[%emt 0:00:00]} Ke5 {
[%emt 0:00:00]} 40. Kd3 {[%emt 0:00:00]} g6 {[%emt 0:00:00]} 41. Bg5 {[%emt 0:
00:00]} Bc5 {[%emt 0:00:00]} 42. Bd2 {[%emt 0:00:00]} Bb4 {[%emt 0:00:00]} 43.
Bg5 {[%emt 0:00:00]} Be1 {[%emt 0:00:00]} 44. Be3 {[%emt 0:00:00]} Bh4 {
[%emt 0:00:00]} 45. Bd2 {[%emt 0:00:00]} Bf2 {[%emt 0:00:00]} 46. Ke2 {[%emt 0:
00:00]} Bb6 {[%emt 0:00:00]} 1/2-1/2

[Event "Gibraltar Masters 18th"]
[Site "Gibraltar"]
[Date "2020.01.22"]
[Round "2.10"]
[White "Cheparinov, Ivan"]
[Black "Abergel, Thal"]
[Result "1-0"]
[ECO "E80"]
[WhiteElo "2686"]
[BlackElo "2478"]
[PlyCount "73"]
[EventDate "2020.01.21"]
[EventType "swiss"]
[EventRounds "10"]
[EventCountry "GGB"]
[SourceTitle "BritBase"]
[Source "John Saunders"]
[SourceDate "2021.06.05"]
[SourceVersion "1"]
[SourceVersionDate "2021.06.05"]
[SourceQuality "1"]
[TimeControl "40/100:0"]
[WhiteClock "0:08:39"]
[BlackClock "0:01:47"]

1. d4 {[%emt 0:00:00]} Nf6 {[%emt 0:00:00]} 2. c4 {[%emt 0:00:00]} c5 {[%emt 0:
00:00]} 3. d5 {[%emt 0:00:00]} g6 {[%emt 0:00:00]} 4. Nc3 {[%emt 0:00:00]} Bg7
{[%emt 0:00:00]} 5. e4 {[%emt 0:00:00]} d6 {[%emt 0:00:00]} 6. f3 {[%emt 0:00:
00]} e6 {[%emt 0:00:00]} 7. Nge2 {[%emt 0:00:00]} exd5 {[%emt 0:00:00]} 8. cxd5
{[%emt 0:00:00]} Nbd7 {[%emt 0:00:00]} 9. Ng3 {[%emt 0:00:00]} h5 {[%emt 0:00:
00]} 10. Be2 {[%emt 0:00:00]} Nh7 {[%emt 0:00:00]} 11. Nf1 {[%emt 0:00:00]} O-O
{[%emt 0:00:00]} 12. Ne3 {[%emt 0:00:00]} Qe7 {[%emt 0:00:00]} 13. a4 {[%emt 0:
00:00]} Ne5 {[%emt 0:00:00]} 14. O-O {[%emt 0:00:00]} f5 {[%emt 0:00:00]} 15.
f4 {[%emt 0:00:00]} Ng4 {[%emt 0:00:00]} 16. Nxg4 {[%emt 0:00:00]} hxg4 {
[%emt 0:00:00]} 17. e5 {[%emt 0:00:00]} dxe5 {[%emt 0:00:00]} 18. Bc4 {[%emt 0:
00:00]} Qf7 {[%emt 0:00:00]} 19. Qb3 {[%emt 0:00:00]} Re8 {[%emt 0:00:00]} 20.
Nb5 {[%emt 0:00:00]} Bd7 {[%emt 0:00:00]} 21. Nc7 {[%emt 0:00:00]} Qf8 {
[%emt 0:00:00]} 22. d6+ {[%emt 0:00:00]} Kh8 {[%emt 0:00:00]} 23. Nxa8 {
[%emt 0:00:00]} Rxa8 {[%emt 0:00:00]} 24. Qxb7 {[%emt 0:00:00]} Rd8 {[%emt 0:
00:00]} 25. Rd1 {[%emt 0:00:00]} exf4 {[%emt 0:00:00]} 26. Bxf4 {[%emt 0:00:00]
} g5 {[%emt 0:00:09]} 27. Be3 {[%emt 0:00:00]} Qe8 {[%emt 0:00:45]} 28. Bxc5 {
[%emt 0:00:00]} Rb8 {[%emt 0:00:00]} 29. Qc7 {[%emt 0:00:00]} Rc8 {[%emt 0:00:
00]} 30. Re1 {[%emt 0:00:00]} Be5 {[%emt 0:00:00]} 31. Qxa7 {[%emt 0:00:00]}
Nf6 {[%emt 0:00:00]} 32. Bd4 {[%emt 0:00:00]} Ne4 {[%emt 0:00:00]} 33. Bf7 {
[%emt 0:00:00]} Qxf7 {[%emt 0:00:00]} 34. Bxe5+ {[%emt 0:00:00]} Kg8 {[%emt 0:
00:00]} 35. Rac1 {[%emt 0:00:00]} Rxc1 {[%emt 0:00:00]} 36. Rxc1 {[%emt 0:00:
00]} Qb3 {[%emt 0:00:00]} 37. Rc8+ {[%emt 0:00:00]} 1-0

[Event "Gibraltar Masters 18th"]
[Site "Gibraltar"]
[Date "2020.01.22"]
[Round "2.11"]
[White "Maghsoodloo, Parham"]
[Black "Quintiliano Pinto, Renato R"]
[Result "1-0"]
[ECO "B23"]
[WhiteElo "2674"]
[BlackElo "2471"]
[PlyCount "37"]
[EventDate "2020.01.21"]
[EventType "swiss"]
[EventRounds "10"]
[EventCountry "GGB"]
[SourceTitle "BritBase"]
[Source "John Saunders"]
[SourceDate "2021.06.05"]
[SourceVersion "1"]
[SourceVersionDate "2021.06.05"]
[SourceQuality "1"]
[TimeControl "40/100:0"]
[WhiteClock "0:59:09"]
[BlackClock "0:12:25"]

1. e4 {[%emt 0:00:00]} c5 {[%emt 0:00:00]} 2. Nc3 {[%emt 0:00:00]} Nc6 {
[%emt 0:00:00]} 3. Bb5 {[%emt 0:00:00]} Nd4 {[%emt 0:00:00]} 4. Nf3 {[%emt 0:
00:00]} a6 {[%emt 0:00:00]} 5. Bd3 {[%emt 0:00:00]} Nc6 {[%emt 0:00:00]} 6. O-O
{[%emt 0:00:00]} g6 {[%emt 0:00:00]} 7. e5 {[%emt 0:00:00]} Bg7 {[%emt 0:00:00]
} 8. Re1 {[%emt 0:00:00]} f6 {[%emt 0:00:00]} 9. Be4 {[%emt 0:00:00]} fxe5 {
[%emt 0:00:00]} 10. Bxc6 {[%emt 0:00:00]} bxc6 {[%emt 0:00:00]} 11. Nxe5 {
[%emt 0:00:00]} Nf6 {[%emt 0:00:00]} 12. d4 {[%emt 0:00:00]} cxd4 {[%emt 0:00:
00]} 13. Qxd4 {[%emt 0:00:00]} O-O {[%emt 0:00:00]} 14. Bg5 {[%emt 0:00:00]}
Qe8 {[%emt 0:00:00]} 15. Rad1 {[%emt 0:00:00]} Kh8 {[%emt 0:00:00]} 16. Qb6 {
[%emt 0:00:00]} h6 {[%emt 0:00:00]} 17. Bh4 {[%emt 0:00:00]} e6 {[%emt 0:00:00]
} 18. Bxf6 {[%emt 0:00:00]} Rxf6 {[%emt 0:00:00]} 19. Ne4 {[%emt 0:00:00]} 1-0

[Event "Gibraltar Masters 18th"]
[Site "Gibraltar"]
[Date "2020.01.22"]
[Round "2.12"]
[White "Di Berardino, Diego Rafael"]
[Black "Saric, Ivan"]
[Result "1/2-1/2"]
[ECO "D11"]
[WhiteElo "2478"]
[BlackElo "2655"]
[PlyCount "82"]
[EventDate "2020.01.21"]
[EventType "swiss"]
[EventRounds "10"]
[EventCountry "GGB"]
[SourceTitle "BritBase"]
[Source "John Saunders"]
[SourceDate "2021.06.05"]
[SourceVersion "1"]
[SourceVersionDate "2021.06.05"]
[SourceQuality "1"]
[TimeControl "40/100:0"]
[WhiteClock "0:03:14"]
[BlackClock "0:45:50"]

1. d4 {[%emt 0:00:00]} d5 {[%emt 0:00:00]} 2. c4 {[%emt 0:00:00]} c6 {[%emt 0:
00:00]} 3. Nf3 {[%emt 0:00:00]} Nf6 {[%emt 0:00:00]} 4. g3 {[%emt 0:00:00]} Bf5
{[%emt 0:00:00]} 5. Nc3 {[%emt 0:00:00]} e6 {[%emt 0:00:00]} 6. Nh4 {[%emt 0:
00:00]} dxc4 {[%emt 0:00:00]} 7. Nxf5 {[%emt 0:00:00]} exf5 {[%emt 0:00:00]} 8.
e3 {[%emt 0:00:00]} Nbd7 {[%emt 0:00:00]} 9. Bxc4 {[%emt 0:00:00]} Nb6 {
[%emt 0:00:00]} 10. Bb3 {[%emt 0:00:00]} Be7 {[%emt 0:00:00]} 11. O-O {[%emt 0:
00:00]} O-O {[%emt 0:00:00]} 12. a3 {[%emt 0:00:00]} Qd7 {[%emt 0:00:00]} 13.
Qf3 {[%emt 0:00:00]} a5 {[%emt 0:00:00]} 14. Bd2 {[%emt 0:00:00]} Rfe8 {
[%emt 0:00:00]} 15. Rfd1 {[%emt 0:00:00]} Bf8 {[%emt 0:00:00]} 16. Be1 {
[%emt 0:00:00]} Red8 {[%emt 0:00:00]} 17. Ne2 {[%emt 0:00:00]} Nbd5 {[%emt 0:
00:00]} 18. Nc1 {[%emt 0:00:00]} Ne4 {[%emt 0:00:00]} 19. Nd3 {[%emt 0:00:00]}
Bd6 {[%emt 0:00:00]} 20. Rac1 {[%emt 0:00:00]} Qe6 {[%emt 0:00:00]} 21. Nc5 {
[%emt 0:00:00]} Bxc5 {[%emt 0:00:00]} 22. dxc5 {[%emt 0:00:00]} g5 {[%emt 0:00:
00]} 23. Qg2 {[%emt 0:00:00]} g4 {[%emt 0:00:00]} 24. h4 {[%emt 0:00:00]} a4 {
[%emt 0:00:00]} 25. Ba2 {[%emt 0:00:00]} Qe5 {[%emt 0:00:00]} 26. Rd4 {[%emt 0:
00:00]} Nc7 {[%emt 0:00:00]} 27. Rcd1 {[%emt 0:00:00]} Rxd4 {[%emt 0:00:00]}
28. Rxd4 {[%emt 0:00:00]} Ne6 {[%emt 0:00:00]} 29. Bxe6 {[%emt 0:00:00]} fxe6 {
[%emt 0:00:00]} 30. Qf1 {[%emt 0:00:00]} Qxc5 {[%emt 0:00:00]} 31. Qd3 {
[%emt 0:00:00]} Qf8 {[%emt 0:00:00]} 32. Bc3 {[%emt 0:00:00]} h5 {[%emt 0:00:
00]} 33. Qc4 {[%emt 0:00:00]} Qe7 {[%emt 0:00:00]} 34. Qd3 {[%emt 0:00:00]} Qf8
{[%emt 0:00:00]} 35. Qc4 {[%emt 0:00:00]} Qe7 {[%emt 0:00:00]} 36. Qd3 {
[%emt 0:00:00]} Nxc3 {[%emt 0:00:00]} 37. Qxc3 {[%emt 0:00:00]} c5 {[%emt 0:00:
00]} 38. Rd3 {[%emt 0:00:00]} Rd8 {[%emt 0:00:00]} 39. Rxd8+ {[%emt 0:00:00]}
Qxd8 {[%emt 0:00:00]} 40. Qxc5 {[%emt 0:00:00]} Qd1+ {[%emt 0:00:00]} 41. Kh2 {
[%emt 0:00:06]} Qf3 {[%emt 0:00:00]} 1/2-1/2

[Event "Gibraltar Masters 18th"]
[Site "Gibraltar"]
[Date "2020.01.22"]
[Round "2.13"]
[White "Girya, Olga"]
[Black "Esipenko, Andrey"]
[Result "0-1"]
[ECO "E15"]
[WhiteElo "2477"]
[BlackElo "2654"]
[PlyCount "90"]
[EventDate "2020.01.21"]
[EventType "swiss"]
[EventRounds "10"]
[EventCountry "GGB"]
[SourceTitle "BritBase"]
[Source "John Saunders"]
[SourceDate "2021.06.05"]
[SourceVersion "1"]
[SourceVersionDate "2021.06.05"]
[SourceQuality "1"]
[TimeControl "40/100:0"]
[WhiteClock "0:49:45"]
[BlackClock "0:53:13"]

1. d4 {[%emt 0:00:00]} Nf6 {[%emt 0:00:00]} 2. c4 {[%emt 0:00:00]} e6 {[%emt 0:
00:00]} 3. Nf3 {[%emt 0:00:00]} b6 {[%emt 0:00:00]} 4. g3 {[%emt 0:00:00]} Ba6
{[%emt 0:00:00]} 5. b3 {[%emt 0:00:00]} Bb4+ {[%emt 0:00:00]} 6. Bd2 {[%emt 0:
00:00]} Be7 {[%emt 0:00:00]} 7. Nc3 {[%emt 0:00:00]} d5 {[%emt 0:00:00]} 8.
cxd5 {[%emt 0:00:00]} exd5 {[%emt 0:00:00]} 9. Bg2 {[%emt 0:00:00]} O-O {
[%emt 0:00:00]} 10. O-O {[%emt 0:00:00]} Nbd7 {[%emt 0:00:00]} 11. Ne5 {
[%emt 0:00:00]} Bb7 {[%emt 0:00:00]} 12. Bc1 {[%emt 0:00:00]} Re8 {[%emt 0:00:
00]} 13. Bb2 {[%emt 0:00:00]} Bd6 {[%emt 0:00:00]} 14. f4 {[%emt 0:00:00]} c5 {
[%emt 0:00:00]} 15. e3 {[%emt 0:00:00]} cxd4 {[%emt 0:00:00]} 16. exd4 {
[%emt 0:00:00]} a6 {[%emt 0:00:00]} 17. a4 {[%emt 0:00:00]} Bb4 {[%emt 0:00:00]
} 18. Rc1 {[%emt 0:00:00]} Bxc3 {[%emt 0:00:00]} 19. Rxc3 {[%emt 0:00:00]} Ne4
{[%emt 0:00:00]} 20. Rc2 {[%emt 0:00:00]} Nf8 {[%emt 0:00:00]} 21. Bh3 {
[%emt 0:00:00]} f6 {[%emt 0:00:00]} 22. Nc6 {[%emt 0:00:00]} Qd6 {[%emt 0:00:
00]} 23. Qc1 {[%emt 0:00:00]} Ne6 {[%emt 0:00:00]} 24. Ba3 {[%emt 0:00:00]} Qd7
{[%emt 0:00:00]} 25. Ne5 {[%emt 0:00:00]} Qd8 {[%emt 0:00:00]} 26. Bxe6+ {
[%emt 0:00:00]} Rxe6 {[%emt 0:00:00]} 27. Rc7 {[%emt 0:00:00]} Rc8 {[%emt 0:00:
00]} 28. Rxc8 {[%emt 0:00:00]} Bxc8 {[%emt 0:00:00]} 29. f5 {[%emt 0:00:00]}
Re8 {[%emt 0:00:00]} 30. Nd3 {[%emt 0:00:32]} a5 {[%emt 0:00:00]} 31. Qc6 {
[%emt 0:00:33]} Ba6 {[%emt 0:00:00]} 32. Rd1 {[%emt 0:00:00]} Bxd3 {[%emt 0:00:
00]} 33. Rxd3 {[%emt 0:00:00]} h5 {[%emt 0:00:00]} 34. h4 {[%emt 0:00:00]} Kh7
{[%emt 0:00:00]} 35. Kg2 {[%emt 0:00:00]} Qc8 {[%emt 0:00:00]} 36. Qxc8 {
[%emt 0:00:00]} Rxc8 {[%emt 0:00:00]} 37. b4 {[%emt 0:00:00]} Rc2+ {[%emt 0:00:
00]} 38. Kg1 {[%emt 0:00:00]} Rc4 {[%emt 0:00:00]} 39. bxa5 {[%emt 0:00:00]}
bxa5 {[%emt 0:00:00]} 40. Bf8 {[%emt 0:00:00]} Kg8 {[%emt 0:00:00]} 41. Bc5 {
[%emt 0:00:00]} Rxa4 {[%emt 0:00:00]} 42. Rb3 {[%emt 0:00:00]} Ra1+ {[%emt 0:
00:00]} 43. Kg2 {[%emt 0:00:00]} Ra2+ {[%emt 0:00:00]} 44. Kg1 {[%emt 0:00:00]}
a4 {[%emt 0:00:00]} 45. Rb8+ {[%emt 0:00:00]} Kh7 {[%emt 0:00:00]} 0-1

[Event "Gibraltar Masters 18th"]
[Site "Gibraltar"]
[Date "2020.01.22"]
[Round "2.14"]
[White "Lagarde, Maxime"]
[Black "Stefanova, Antoaneta"]
[Result "1-0"]
[ECO "C95"]
[WhiteElo "2651"]
[BlackElo "2469"]
[PlyCount "111"]
[EventDate "2020.01.21"]
[EventType "swiss"]
[EventRounds "10"]
[EventCountry "GGB"]
[SourceTitle "BritBase"]
[Source "John Saunders"]
[SourceDate "2021.06.05"]
[SourceVersion "1"]
[SourceVersionDate "2021.06.05"]
[SourceQuality "1"]
[TimeControl "40/100:0"]
[WhiteClock "0:50:53"]
[BlackClock "0:39:11"]

1. e4 {[%emt 0:00:00]} e5 {[%emt 0:00:00]} 2. Nf3 {[%emt 0:00:00]} Nc6 {
[%emt 0:00:00]} 3. Bb5 {[%emt 0:00:00]} a6 {[%emt 0:00:00]} 4. Ba4 {[%emt 0:00:
00]} Nf6 {[%emt 0:00:00]} 5. O-O {[%emt 0:00:00]} Be7 {[%emt 0:00:00]} 6. Re1 {
[%emt 0:00:00]} b5 {[%emt 0:00:00]} 7. Bb3 {[%emt 0:00:00]} d6 {[%emt 0:00:00]}
8. c3 {[%emt 0:00:00]} O-O {[%emt 0:00:00]} 9. h3 {[%emt 0:00:00]} Nb8 {
[%emt 0:00:00]} 10. d4 {[%emt 0:00:00]} Nbd7 {[%emt 0:00:00]} 11. Nbd2 {
[%emt 0:00:00]} Bb7 {[%emt 0:00:00]} 12. Bc2 {[%emt 0:00:00]} Re8 {[%emt 0:00:
00]} 13. Nf1 {[%emt 0:00:00]} Bf8 {[%emt 0:00:00]} 14. Ng3 {[%emt 0:00:00]} g6
{[%emt 0:00:00]} 15. a4 {[%emt 0:00:00]} Nb6 {[%emt 0:00:00]} 16. a5 {[%emt 0:
00:00]} Nbd7 {[%emt 0:00:00]} 17. d5 {[%emt 0:00:00]} c6 {[%emt 0:00:00]} 18.
dxc6 {[%emt 0:00:00]} Bxc6 {[%emt 0:00:00]} 19. b4 {[%emt 0:00:00]} Qc7 {
[%emt 0:00:00]} 20. Bb3 {[%emt 0:00:00]} Bg7 {[%emt 0:00:00]} 21. Be3 {[%emt 0:
00:00]} Nf8 {[%emt 0:00:00]} 22. Bb6 {[%emt 0:00:00]} Qe7 {[%emt 0:00:00]} 23.
Qd2 {[%emt 0:00:00]} Ne6 {[%emt 0:00:00]} 24. Rad1 {[%emt 0:00:00]} Bf8 {
[%emt 0:00:00]} 25. c4 {[%emt 0:00:00]} Qb7 {[%emt 0:00:00]} 26. c5 {[%emt 0:
00:00]} dxc5 {[%emt 0:00:00]} 27. Nxe5 {[%emt 0:00:00]} c4 {[%emt 0:00:00]} 28.
Bc2 {[%emt 0:00:00]} Rab8 {[%emt 0:00:00]} 29. Nxc6 {[%emt 0:00:00]} Qxc6 {
[%emt 0:00:00]} 30. e5 {[%emt 0:00:00]} c3 {[%emt 0:00:00]} 31. Qc1 {[%emt 0:
00:00]} Nd7 {[%emt 0:00:00]} 32. Ne4 {[%emt 0:00:00]} Kg7 {[%emt 0:00:00]} 33.
Nd6 {[%emt 0:00:00]} Bxd6 {[%emt 0:00:08]} 34. Rxd6 {[%emt 0:00:00]} Qc8 {
[%emt 0:00:00]} 35. Be3 {[%emt 0:00:00]} Kg8 {[%emt 0:00:07]} 36. f4 {[%emt 0:
00:00]} Ng7 {[%emt 0:00:00]} 37. Be4 {[%emt 0:00:00]} Re6 {[%emt 0:00:02]} 38.
Ba7 {[%emt 0:00:00]} Rb7 {[%emt 0:00:24]} 39. Bxb7 Qxb7 {[%emt 0:00:00]} 40.
Bd4 {[%emt 0:00:00]} Re8 {[%emt 0:00:00]} 41. Bxc3 {[%emt 0:00:00]} Nf5 {
[%emt 0:00:00]} 42. Rd3 {[%emt 0:00:00]} Nf8 {[%emt 0:00:00]} 43. Qd2 {[%emt 0:
00:00]} Ne6 {[%emt 0:00:00]} 44. Qf2 {[%emt 0:00:00]} Qc6 {[%emt 0:00:00]} 45.
g4 {[%emt 0:00:00]} Qc4 {[%emt 0:00:00]} 46. Rf3 {[%emt 0:00:00]} Nfd4 {
[%emt 0:00:00]} 47. Bxd4 {[%emt 0:00:00]} Nxd4 {[%emt 0:00:00]} 48. Rfe3 {
[%emt 0:00:00]} Qxb4 {[%emt 0:00:00]} 49. Re4 {[%emt 0:00:00]} Rd8 {[%emt 0:00:
00]} 50. Rd1 {[%emt 0:00:00]} Ne2+ {[%emt 0:00:00]} 51. Kh2 {[%emt 0:00:00]}
Qxe4 {[%emt 0:00:00]} 52. Rxd8+ {[%emt 0:00:00]} Kg7 {[%emt 0:00:00]} 53. Rd2 {
[%emt 0:00:00]} Nxf4 {[%emt 0:00:00]} 54. Rd4 {[%emt 0:00:00]} Qxe5 {[%emt 0:
00:00]} 55. Rxf4 {[%emt 0:00:00]} g5 {[%emt 0:00:00]} 56. Qd4 {[%emt 0:00:00]}
1-0

[Event "Gibraltar Masters 18th"]
[Site "Gibraltar"]
[Date "2020.01.22"]
[Round "2.15"]
[White "Donchenko, Alexander"]
[Black "Gunina, Valentina"]
[Result "1-0"]
[ECO "E01"]
[WhiteElo "2647"]
[BlackElo "2461"]
[PlyCount "69"]
[EventDate "2020.01.21"]
[EventType "swiss"]
[EventRounds "10"]
[EventCountry "GGB"]
[SourceTitle "BritBase"]
[Source "John Saunders"]
[SourceDate "2021.06.05"]
[SourceVersion "1"]
[SourceVersionDate "2021.06.05"]
[SourceQuality "1"]
[TimeControl "40/100:0"]
[WhiteClock "0:14:45"]
[BlackClock "0:01:31"]

1. d4 {[%emt 0:00:00]} Nf6 {[%emt 0:00:00]} 2. c4 {[%emt 0:00:00]} e6 {[%emt 0:
00:00]} 3. g3 {[%emt 0:00:00]} Bb4+ {[%emt 0:00:00]} 4. Nd2 {[%emt 0:00:00]} d5
{[%emt 0:00:00]} 5. Bg2 {[%emt 0:00:00]} O-O {[%emt 0:00:00]} 6. Ngf3 {[%emt 0:
00:00]} Nc6 {[%emt 0:00:00]} 7. O-O {[%emt 0:00:00]} b6 {[%emt 0:00:00]} 8. Qc2
{[%emt 0:00:00]} Bb7 {[%emt 0:00:00]} 9. Rd1 {[%emt 0:00:00]} a5 {[%emt 0:00:
00]} 10. a3 {[%emt 0:00:00]} Bxd2 {[%emt 0:00:00]} 11. Bxd2 {[%emt 0:00:00]} a4
{[%emt 0:00:00]} 12. Rac1 {[%emt 0:00:00]} Ne4 {[%emt 0:00:00]} 13. Bf4 {
[%emt 0:00:00]} f6 {[%emt 0:00:00]} 14. Ne1 {[%emt 0:00:00]} Qe7 {[%emt 0:00:
00]} 15. cxd5 {[%emt 0:00:00]} exd5 {[%emt 0:00:00]} 16. Bxe4 {[%emt 0:00:00]}
dxe4 {[%emt 0:00:00]} 17. d5 {[%emt 0:00:00]} Na5 {[%emt 0:00:00]} 18. Qxc7 {
[%emt 0:00:00]} Qe8 {[%emt 0:00:00]} 19. Qxb6 {[%emt 0:00:00]} Qh5 {[%emt 0:00:
00]} 20. Qe6+ {[%emt 0:00:00]} Kh8 {[%emt 0:00:00]} 21. Qxe4 {[%emt 0:00:00]}
Rfe8 {[%emt 0:00:00]} 22. Qf3 {[%emt 0:00:00]} Qg6 {[%emt 0:00:00]} 23. Ng2 {
[%emt 0:00:00]} Ba6 {[%emt 0:00:00]} 24. Ne3 {[%emt 0:00:00]} Nb3 {[%emt 0:00:
00]} 25. Rc7 {[%emt 0:00:00]} Re4 {[%emt 0:00:00]} 26. d6 {[%emt 0:00:00]} Rg8
{[%emt 0:00:00]} 27. Re7 {[%emt 0:00:00]} Rd4 {[%emt 0:00:00]} 28. Re1 {
[%emt 0:00:00]} Nd2 {[%emt 0:00:00]} 29. Qg4 {[%emt 0:00:00]} Qxg4 {[%emt 0:00:
00]} 30. Nxg4 {[%emt 0:00:00]} Nc4 {[%emt 0:00:00]} 31. Ne3 {[%emt 0:00:00]}
Nxd6 {[%emt 0:00:36]} 32. Re6 {[%emt 0:00:00]} Rd8 {[%emt 0:00:00]} 33. Rxd6 {
[%emt 0:00:00]} R4xd6 {[%emt 0:00:00]} 34. Bxd6 {[%emt 0:00:00]} Rxd6 {[%emt 0:
00:00]} 35. Rd1 {[%emt 0:00:00]} 1-0